Cogmind - Beta 10.2 @@@ ROGUE MODE // 2020.11.29 @ 19:17:17 // Halloween2020/ForbiddenLore Player: ModulinMyGlobulin Result: Destroyed by S-27 Virus with Autogun Performance ------------- Evolutions (5) 2500 Regions Visited (15) 3000 Robots Destroyed (155) 775 Value Destroyed (6637) 6637 Prototype IDs (16) 320 Alien Tech Used (1) 200 Bonus (805) 805 TOTAL SCORE: 14237 Bonus ------- High Alert Combat Kills 387 Follower Combat Kills 526 Met Zhirov 300 Friendly Fire -408 Cogmind --------- Core Integrity 0/1000 Matter 234/300 Energy 98/100 System Corruption 33% Temperature Cool (0) Movement Core (50) Location -4/Proximity Caves Parts ------- > --- POWER (2) -------- (None) > --- PROPULSION (3) --- (None) > --- UTILITY (9) ------ Experimental Utility Shielding Advanced Hacking Suite Makeshift System Shield > --- WEAPON (3) ------- (None) > --- INVENTORY (4) ---- Micro Fission Core Heavy Antimatter Reactor High-capacity Storage Unit High-capacity Storage Unit Peak State ------------ > --- POWER ------------ Deuterium Engine Neutrino Core > --- PROPULSION ------- Carbon-fiber Leg Flexi-carbon Leg Myomer Leg > --- UTILITY ---------- Advanced Heat Sink Advanced Heat Sink Advanced Cooling System High-capacity Storage Unit High-capacity Storage Unit Advanced Energy Well Enhanced Optical Array Improved Armor Integrity Analyzer Improved Utility Shielding > --- WEAPON ----------- High-powered Shock Rifle Neutron Cannon KE Penetrator > --- INVENTORY -------- Nuclear Core Improved Deuterium Engine Reinforced Deuterium Engine Micro Nuclear Core Heavy Treads Heavy Treads Carbon-fiber Leg Carbon-fiber Leg Carbon-fiber Leg Advanced Heat Sink High-capacity Storage Unit High-capacity Storage Unit Wave Gun Heavy Plasma Cannon Heavy Plasma Cannon Gauss Rifle Long-range Missile Launcher Chainsword [Rating: 87] Favorites ----------- Power Deuterium Engine Engine Deuterium Engine Power Core Nuclear Core Propulsion Improved Aluminum Leg Treads Light Treads Leg Improved Aluminum Leg Wheel Compact Wheel Utility High-capacity Storage Unit Device Improved Heat Sink Storage High-capacity Storage Unit Processor Enhanced Optical Array Hackware Makeshift System Shield Protection Hardened Medium Armor Plating Weapon Advanced Assault Cannon Energy Gun Beamcaster Energy Cannon Phase Cannon Ballistic Gun KE Penetrator Ballistic Cannon Advanced Assault Cannon Launcher Missile Launcher Slashing Weapon Chainsword Build | -11 -10 -9 -9 -8 -7 -6 -6 -6 -6 -6 -5 -5 -5 -5 -4 ------- Run | Scr Mat Mat Min Mat Fac Fac Ext Cet Arc Hub Fac Upp Upp Zhi Pro Slots Evolved 10 | . . 2 . 2 2 2 . . . . 2 . . . . Power 1 | . . . . . . . . . . . 1 . . . . Propulsion 1 | . . . . . 1 . . . . . . . . . . Utility 7 | . . 2 . 2 1 1 . . . . 1 . . . . Weapon 1 | . . . . . . 1 . . . . . . . . . Parts Attached 168 | . 7 14 7 11 36 7 9 13 6 15 36 4 . 3 . Power 20 | . 1 1 2 2 4 . 2 2 . 1 5 . . . . Engine 15 | . 1 1 2 2 4 . 2 1 . 1 1 . . . . Core 5 | . . . . . . . . 1 . . 4 . . . . Reactor . | . . . . . . . . . . . . . . . . Propulsion 42 | . 1 5 2 2 12 . 2 3 1 5 8 1 . . . Treads 11 | . . 3 . . 3 . 2 1 . . 2 . . . . Leg 29 | . 1 2 2 2 7 . . 2 1 5 6 1 . . . Wheel 2 | . . . . . 2 . . . . . . . . . . Hover . | . . . . . . . . . . . . . . . . Flight . | . . . . . . . . . . . . . . . . Utility 47 | . 3 6 1 4 9 4 1 4 3 4 3 2 . 3 . Device 19 | . . 1 . 1 2 3 1 3 2 2 2 1 . 1 . Storage 8 | . . 4 . . 3 . . 1 . . . . . . . Processor 5 | . . . . 3 1 . . . . 1 . . . . . Hackware 2 | . . . . . . . . . . . . 1 . 1 . Protection 13 | . 3 1 1 . 3 1 . . 1 1 1 . . 1 . Artifact . | . . . . . . . . . . . . . . . . Weapon 59 | . 2 2 2 3 11 3 4 4 2 5 20 1 . . . Energy Gun 20 | . 1 1 2 . 2 1 . 1 . 3 9 . . . . Energy Cannon 11 | . . . . 2 1 1 . 1 1 1 4 . . . . Ballistic Gun 10 | . . . . 1 2 1 . . 1 1 4 . . . . Ballistic Cannon 12 | . 1 1 . . 5 . 3 1 . . 1 . . . . Launcher 3 | . . . . . . . 1 1 . . 1 . . . . Special Weapon . | . . . . . . . . . . . . . . . . Impact Weapon . | . . . . . . . . . . . . . . . . Slashing Weapon 3 | . . . . . 1 . . . . . 1 1 . . . Piercing Weapon . | . . . . . . . . . . . . . . . . Special Melee Weapon . | . . . . . . . . . . . . . . . . Unidentified Prototypes 6 | . . . . . . . . 2 . . 1 . . 3 . Parts Lost 100 | . . 4 5 6 18 1 3 9 6 8 27 11 2 . . Power 12 | . . 1 1 1 2 . . 1 . 1 3 2 . . . Propulsion 30 | . . 1 1 1 9 . 1 2 1 2 8 3 1 . . Utility 25 | . . 1 1 2 3 1 1 3 2 2 5 4 . . . Weapon 33 | . . 1 2 2 4 . 1 3 3 3 11 2 1 . . Highest Loss Streak 11 | . . 1 3 3 9 1 1 9 6 5 8 11 1 . . Average Slot Usage (%) 91 | . 91 98 98 96 94 99 97 86 85 95 91 68 13 7 17 Engine 6 | . 13 10 10 8 6 6 6 4 . 2 4 4 . . . Core 1 | . . . . . . . . 1 6 3 4 4 . . . Treads 6 | . . 2 . . 1 20 19 12 7 1 1 . . . . Leg 11 | . 27 19 21 18 15 . . 1 4 15 11 14 4 . . Device 10 | . . 10 11 13 6 10 13 13 14 13 15 7 . . . Storage 16 | . 14 22 22 18 17 13 13 18 20 20 16 9 . . . Processor 13 | . . . . 16 23 20 20 13 13 13 11 9 . . . Protection 4 | . 7 11 10 3 3 8 4 . 3 5 3 . . . 5 Energy Gun 4 | . 20 11 10 4 . 6 . 2 1 5 5 . . . . Energy Cannon 3 | . . . . 7 4 2 6 5 5 2 2 4 . . . Ballistic Gun 2 | . . . . 4 2 3 . . 4 8 6 . . . . Ballistic Cannon 5 | . 6 10 11 1 5 6 12 6 1 . . 4 . . . Naked Turns . | . . . . . . . . . . . . . . . . Heaviest Build 118 | 13 17 80 84 92 110 117 111 109 103 101 118 103 3 1 1 Greatest Support 80 | 20 20 26 28 28 60 60 70 80 80 80 70 50 3 3 3 Greatest Overweight (x) 6 | . . 3 3 3 6 1 1 3 4 2 3 2 . . . Average Overweight (x) 1 | . . 2 2 2 2 1 1 1 1 1 1 1 . . . Largest Inventory Capacity 20 | . 6 20 20 20 20 20 20 20 20 20 20 20 4 4 4 Average Capacity 18 | . 6 19 20 20 20 20 20 20 20 20 20 18 4 4 4 Most Carried 20 | . 6 15 17 18 20 20 20 19 18 20 20 7 4 4 4 Average Carried 15 | . 5 11 15 15 16 18 19 16 17 17 16 5 4 3 4 Final Capacity 20 | 6 6 20 20 20 20 20 20 20 20 20 20 4 4 4 4 Final Carried 20 | 6 6 15 16 16 20 19 19 18 17 20 7 4 4 4 4 Class Distribution -------------------- 43% | Hauler-Mutant 25% | Scavenger-Gunner 12% | Hauler-Gunner 11% | Scavenger-Mutant 6% | Mutant Dominant Class ---------------- Mutant | -10/Materials Hauler-Mutant | -9/Materials Hauler-Mutant | -9/Mines Hauler-Mutant | -8/Materials Hauler-Mutant | -7/Factory Scavenger-Gunner | -6/Factory Hauler-Gunner | -6/Extension Scavenger-Mutant | -6/Cetus Scavenger-Mutant | -6/Archives Scavenger-Gunner | -6/Hub_04(d) Scavenger-Gunner | -5/Factory Scavenger-Mutant | -5/Upper Caves Mutant | -5/Upper Caves Mutant | -5/Zhirov Mutant | -4/Proximity Caves Resources | -11 -10 -9 -9 -8 -7 -6 -6 -6 -6 -6 -5 -5 -5 -5 -4 ----------- Run | Scr Mat Mat Min Mat Fac Fac Ext Cet Arc Hub Fac Upp Upp Zhi Pro Matter Collected 3787 | 200 16 446 106 129 634 499 235 343 178 343 569 89 . . . Remotely . | . . . . . . . . . . . . . . . . Salvage Created 6250 | . 66 803 154 656 664 730 399 354 178 645 1405 196 . . . Parts 344 | . 11 55 15 38 32 37 28 16 6 35 66 5 . . . Haulers Intercepted . | . . . . . . . . . . . . . . . . Recyclers Shooed 2 | . . . . 1 . . . . . . 1 . . . . Parts Field Recycled . | . . . . . . . . . . . . . . . . Retrieved Matter . | . . . . . . . . . . . . . . . . Parts Self-Destructed 2 | . . . . . . . . . . . . 2 . . . Prevented . | . . . . . . . . . . . . . . . . Kills | -11 -10 -9 -9 -8 -7 -6 -6 -6 -6 -6 -5 -5 -5 -5 -4 ------- Run | Scr Mat Mat Min Mat Fac Fac Ext Cet Arc Hub Fac Upp Upp Zhi Pro Combat Hostiles Destroyed 127 | . 3 20 6 10 19 10 7 11 4 11 23 3 . . . Melee 4 | . . . . . . . . . . . 1 3 . . . Guns 51 | . 1 11 4 5 3 6 . . 1 9 11 . . . . Cannons 64 | . 1 8 2 5 16 4 7 8 3 2 8 . . . . AOE 8 | . 1 1 . . . . . 3 . . 3 . . . . Classes Destroyed 12 | . 2 5 . 1 3 . 1 . . . . . . . . Worker 5 | . 2 . . . 1 . . . . . 2 . . . . Builder 6 | . . . . . 1 1 1 . . 1 2 . . . . Recycler 4 | . . 1 . 1 . 1 . . . . 1 . . . . Operator 2 | . . . . . . . 1 . . . 1 . . . . Watcher 9 | . . 2 . 2 1 1 1 1 . 1 . . . . . Swarmer 23 | . 3 7 3 . . . . 3 . 3 4 . . . . Grunt 41 | . . 8 1 4 8 2 2 2 . 4 8 2 . . . Brawler 6 | . . 1 . 1 1 . . 1 . . 1 1 . . . Duelist 3 | . . . . . 2 . 1 . . . . . . . . Sentry 29 | . . 4 2 4 3 4 3 . 4 3 2 . . . . Hunter 9 | . . . . 1 2 2 . . . . 4 . . . . Programmer 12 | . . . . . 3 2 1 1 . 1 4 . . . . Cetus Guard 4 | . . . . . . . . 4 . . . . . . . Thug 2 | . . . . . . . . 2 . . . . . . . Best Kill Streak 12 | . 5 6 3 4 5 2 5 3 1 4 12 3 . . . Combat Bots Only 9 | . 3 6 3 3 3 2 3 3 1 4 9 3 . . . Max Kills in Single Turn 3 | . 3 1 1 2 2 1 1 2 1 2 2 1 . . . Gunslinging . | . . . . . . . . . . . . . . . . Exploded 2 | . 1 1 . . . . . 2 . . 2 . . . . Melee 1 | . . . . . . . . . . . 1 1 . . . Uniques/NPCs Destroyed 1 | . . . . . . . . 1 . . . . . . . A7 (-6/Cetus) Combat | -11 -10 -9 -9 -8 -7 -6 -6 -6 -6 -6 -5 -5 -5 -5 -4 -------- Run | Scr Mat Mat Min Mat Fac Fac Ext Cet Arc Hub Fac Upp Upp Zhi Pro Damage Taken 15627 | . 75 991 315 893 2621 702 671 1466 798 1347 4447 914 334 . 53 Core 2557 | . . 204 89 192 338 23 27 405 120 148 482 266 210 . 53 Absorbed by Shields 197 | . . . . . . . 183 14 . . . . . . . Reduced by Siege Mode 50 | . . . . . . . . . . . 50 . . . . Core Remaining (%) 59 | 100 100 . 26 65 51 . . . . 14 . . . . . Volleys Fired 416 | . 10 61 15 39 84 29 21 28 18 33 72 6 . . . Largest 3 | . 2 2 2 2 2 3 3 3 3 3 3 2 . . . Hottest 234 | . 90 80 110 135 153 213 213 234 234 183 213 147 . . . Shots Fired 896 | . 20 121 24 78 147 80 56 53 44 86 177 10 . . . Gun 423 | . 12 61 9 39 31 48 5 1 12 71 134 . . . . Cannon 454 | . 8 60 15 39 116 32 51 39 32 15 37 10 . . . Launcher 19 | . . . . . . . . 13 . . 6 . . . . Special . | . . . . . . . . . . . . . . . . Kinetic 429 | . 8 60 15 22 91 44 37 22 18 36 72 4 . . . Thermal 319 | . 2 . 6 56 50 26 19 18 26 50 60 6 . . . Explosive 19 | . . . . . . . . 13 . . 6 . . . . Electromagnetic 129 | . 10 61 3 . 6 10 . . . . 39 . . . . Robot Hit Streak 27 | . 1 7 11 13 27 16 9 9 12 23 22 3 . . . Robot Miss Streak 5 | . 5 4 2 2 2 3 2 2 3 3 5 1 . . . Penetration Max 1 | . . . . 1 . . . . . 1 1 . . . . Secondary Targets 1 | . . . . . . . . . . 1 . . . . . Max Gunslinging Chain 1 | . . . . . . . . . . 1 . . . . . Shots Hit Robots 618 | . 5 66 17 50 117 57 38 36 34 60 125 13 . . . Core Hits 301 | . 5 26 8 21 43 26 18 37 12 24 76 5 . . . Critical Hits 18 | . . 1 . . 3 . 7 2 . 2 3 . . . . Critical Kills 5 | . . 1 . . . . 2 1 . . 1 . . . . Critical Parts Destroyed 9 | . . . . . 1 . 3 1 . 2 2 . . . . Melee Attacks 13 | . . . . . 1 . . . . . 3 9 . . . Impact . | . . . . . . . . . . . . . . . . Slashing 13 | . . . . . 1 . . . . . 3 9 . . . Piercing . | . . . . . . . . . . . . . . . . Sneak Attacks . | . . . . . . . . . . . . . . . . Combat Hostiles . | . . . . . . . . . . . . . . . . Follow-up Attacks . | . . . . . . . . . . . . . . . . Damage Inflicted 17234 | . 149 1257 328 1301 3185 1373 1331 1823 946 1354 3814 373 . . . Guns 5891 | . 34 603 143 620 498 867 49 28 216 1121 1712 . . . . Cannons 8623 | . 50 533 185 678 2601 476 1138 825 730 177 1080 150 . . . Explosions 2379 | . 65 121 . . 86 . 144 970 . . 993 . . . . Melee 223 | . . . . . . . . . . . . 223 . . . Ramming 118 | . . . . 3 . 30 . . . 56 29 . . . . Kinetic 6503 | . 50 533 185 326 1738 611 722 388 292 587 1004 67 . . . Thermal 7046 | . 65 121 107 972 1298 593 609 465 654 711 1368 83 . . . Explosive 2049 | . . . . . 86 . . 970 . . 993 . . . . Electromagnetic 1295 | . 34 603 36 . 63 139 . . . . 420 . . . . Impact . | . . . . . . . . . . . . . . . . Slashing 223 | . . . . . . . . . . . . 223 . . . Piercing . | . . . . . . . . . . . . . . . . Highest Corruption 33 | . . . . . 4 . . 1 1 3 13 33 33 33 33 Average Corruption 6 | . . . . . 2 . . 1 1 2 8 16 33 33 33 Corruption Purged . | . . . . . . . . . . . . . . . . Effects 102 | . . . . . 18 . . . 1 6 15 31 15 16 . Message Errors 24 | . . . . . 7 . . . . 3 5 5 2 2 . Matter Fused 13 | . . . . . 2 . . . . 2 3 2 2 2 . Heat Flow Errors 7 | . . . . . 2 . . . . . . 5 . . . Energy Discharges 7 | . . . . . 2 . . . . 1 1 1 . 2 . Parts Rejected 3 | . . . . . 1 . . . . . 2 . . . . Data Loss (minor) 4 | . . . . . 1 . . . . . . 2 1 . . Data Loss (major) 3 | . . . . . . . . . . . . 1 . 2 . Alerts 1 | . . . . . . . . . . . 1 . . . . Misdirections 26 | . . . . . . . . . . . 1 7 10 8 . Targeting Errors 13 | . . . . . 2 . . . 1 . 2 8 . . . Weapon Failures 1 | . . . . . 1 . . . . . . . . . . Overload Shots . | . . . . . . . . . . . . . . . . Overflow Damage 402 | . . 12 17 36 130 32 6 13 6 14 136 . . . . Projectiles 192 | . . 12 17 36 54 32 6 . 6 . 29 . . . . Explosions 196 | . . . . . 76 . . 13 . . 107 . . . . Melee 14 | . . . . . . . . . . 14 . . . . . Knockbacks 34 | . 1 9 . . 20 4 . . . . . . . . . Impact . | . . . . . . . . . . . . . . . . Kinetic 31 | . 1 7 . . 19 4 . . . . . . . . . Secondary 3 | . . 2 . . 1 . . . . . . . . . . Self-Inflicted Damage 150 | . . . . . 45 . . 35 . 22 48 . . . . Shots 3 | . . . . . 1 . . 1 . . 1 . . . . Rammed 10 | . . . . . . 1 . . . 2 7 . . . . Targets Rammed 13 | . . . . 1 . 1 . . . 4 7 . . . . Kicked 3 | . . . . 1 . . . . . 2 . . . . . Crushed . | . . . . . . . . . . . . . . . . Highest Temperature 395 | . 192 87 . 66 350 297 387 395 33 13 6 203 . . . Average Temperature 107 | . 82 43 . 26 99 90 143 242 8 5 4 89 . . . Received Heat Transfer 3616 | . . 261 54 396 819 63 214 207 81 486 558 333 144 . . Effects 15 | . . . . . 5 . 1 9 . . . . . . . Shutdowns 2 | . . . . . . . 1 1 . . . . . . . Energy Bleed 1 | . . . . . 1 . . . . . . . . . . Interference 10 | . . . . . 3 . . 7 . . . . . . . Matter Decay 1 | . . . . . . . . 1 . . . . . . . Short Circuit 1 | . . . . . 1 . . . . . . . . . . Siege Activations 7 | . . . . . . . . 2 1 1 3 . . . . Total Turns 72 | . . . . . . . . 18 4 8 42 . . . . Longest Duration 22 | . . . . . . . . 12 4 8 22 . . . . Robots Corrupted . | . . . . . . . . . . . . . . . . Combat Hostiles . | . . . . . . . . . . . . . . . . Parts Fried 2 | . . 1 . . . . . . . 1 . . . . . Impact Corruptions 1 | . . . . . . . . . . 1 . . . . . Robots Melted . | . . . . . . . . . . . . . . . . Combat Hostiles . | . . . . . . . . . . . . . . . . Parts Melted 9 | . . . 1 . . . . . . 6 2 . . . . Heat Transferred 9576 | . 50 100 185 1591 1481 851 581 481 814 1459 1872 111 . . . Parts Sabotaged . | . . . . . . . . . . . . . . . . Parts Stolen . | . . . . . . . . . . . . . . . . Parts Stripped . | . . . . . . . . . . . . . . . . Power Chain Reactions 4 | . 1 3 . . . . . . . . . . . . . Missiles Intercepted . | . . . . . . . . . . . . . . . . Alert | -11 -10 -9 -9 -8 -7 -6 -6 -6 -6 -6 -5 -5 -5 -5 -4 ------- Run | Scr Mat Mat Min Mat Fac Fac Ext Cet Arc Hub Fac Upp Upp Zhi Pro Peak Influence 598 | . 116 452 306 297 598 438 507 457 224 525 536 . . . . Initial 264 | . . 48 175 40 50 258 135 264 114 78 158 . . . . Average 289 | . 30 231 206 139 382 307 346 304 202 293 282 . . . . Maximum Alert Level 2 | . . 2 1 1 2 2 2 2 1 2 2 . . . . Low Security (%) 31 | . 100 47 55 71 35 . 8 . 32 26 38 . . . . Level 1 42 | . . 44 44 28 2 96 53 81 67 52 31 . . . . Level 2 25 | . . 7 . . 61 3 38 18 . 20 30 . . . . Level 3 . | . . . . . . . . . . . . . . . . Level 4 . | . . . . . . . . . . . . . . . . Level 5 . | . . . . . . . . . . . . . . . . High Security . | . . . . . . . . . . . . . . . . Max Security . | . . . . . . . . . . . . . . . . Squads Dispatched 33 | . 1 3 . 2 13 4 1 . . 5 4 . . . . Investigation 1 | . . . . . . . . . . . 1 . . . . Extermination 7 | . . . . . 3 2 . . . 1 1 . . . . Reinforcement 13 | . 1 3 . 2 3 . 1 . . 1 2 . . . . Assault 1 | . . . . . 1 . . . . . . . . . . Garrison 11 | . . . . . 6 2 . . . 3 . . . . . Intercept . | . . . . . . . . . . . . . . . . Construction Impeded 1 | . . . . 1 . . . . . . . . . . . Haulers Reinforced 3 | . . . . . 2 . . . . . 1 . . . . Stealth | -11 -10 -9 -9 -8 -7 -6 -6 -6 -6 -6 -5 -5 -5 -5 -4 --------- Run | Scr Mat Mat Min Mat Fac Fac Ext Cet Arc Hub Fac Upp Upp Zhi Pro Distress Signals 24 | . . 4 . 6 3 2 3 1 . 2 3 . . . . Communications Jammed . | . . . . . . . . . . . . . . . . Distress Signals . | . . . . . . . . . . . . . . . . Times Spotted 230 | . 6 33 6 21 35 13 21 12 4 21 38 4 11 . 5 Peak Tracking Total 8 | . 2 6 3 5 6 2 5 5 1 5 8 4 7 . 5 Tactical Retreats 12 | . . 1 . 1 3 . 1 . . 3 . 1 2 . . Traps | -11 -10 -9 -9 -8 -7 -6 -6 -6 -6 -6 -5 -5 -5 -5 -4 ------- Run | Scr Mat Mat Min Mat Fac Fac Ext Cet Arc Hub Fac Upp Upp Zhi Pro Traps Triggered 11 | . 3 . . . 2 2 . . . 1 3 . . . . Indirectly . | . . . . . . . . . . . . . . . . Trap Hack Attempts . | . . . . . . . . . . . . . . . . Triggered . | . . . . . . . . . . . . . . . . Disarmed . | . . . . . . . . . . . . . . . . Reprogrammed . | . . . . . . . . . . . . . . . . Reused . | . . . . . . . . . . . . . . . . Traps Extracted . | . . . . . . . . . . . . . . . . Installed . | . . . . . . . . . . . . . . . . Triggered 1 | . . . . . . . . . . . . . 1 . . Machines | -11 -10 -9 -9 -8 -7 -6 -6 -6 -6 -6 -5 -5 -5 -5 -4 ---------- Run | Scr Mat Mat Min Mat Fac Fac Ext Cet Arc Hub Fac Upp Upp Zhi Pro Machines Disabled 26 | . 1 . 1 . 5 . 3 4 3 5 4 . . . . Max in Single Turn 3 | . 1 . 1 . 2 . 3 2 1 2 1 . . . . Energy Cycler 2 | . . . . . . . 2 . . . . . . . . Machines Sabotaged . | . . . . . . . . . . . . . . . . Garrisons Compromised . | . . . . . . . . . . . . . . . . Overloaded Fab Kills . | . . . . . . . . . . . . . . . . Fab Network Shutdowns 1 | . . . . . 1 . . . . . . . . . . Hacking | -11 -10 -9 -9 -8 -7 -6 -6 -6 -6 -6 -5 -5 -5 -5 -4 --------- Run | Scr Mat Mat Min Mat Fac Fac Ext Cet Arc Hub Fac Upp Upp Zhi Pro Machines Accessed 24 | . 1 1 . . 5 2 . 3 1 2 3 . . 6 . Terminals 15 | . 1 1 . . 3 2 . 3 . 2 3 . . . . Fabricators 1 | . . . . . 1 . . . . . . . . . . Repair Stations . | . . . . . . . . . . . . . . . . Recycling Units . | . . . . . . . . . . . . . . . . Scanalyzers . | . . . . . . . . . . . . . . . . Garrison Access 1 | . . . . . 1 . . . . . . . . . . Total Hacks 80 | . 1 1 . . 9 5 . 8 25 5 9 . . 17 . Successful 64 | . 1 1 . . 5 2 . 5 25 3 5 . . 17 . Failed 16 | . . . . . 4 3 . 3 . 2 4 . . . . Catastrophic . | . . . . . . . . . . . . . . . . Database Lockouts . | . . . . . . . . . . . . . . . . Manual 15 | . 1 1 . . 6 . . . 1 2 4 . . . . Terminals 35 | . 1 1 . . 6 5 . 8 . 5 9 . . . . Fabricators 2 | . . . . . 2 . . . . . . . . . . Repair Stations . | . . . . . . . . . . . . . . . . Recycling Units . | . . . . . . . . . . . . . . . . Scanalyzers . | . . . . . . . . . . . . . . . . Garrison Access 1 | . . . . . 1 . . . . . . . . . . Terminal Hacks 57 | . 1 1 . . 2 2 . 5 25 1 3 . . 17 . Record 35 | . . . . . . 1 . 4 25 . . . . 5 . Part Schematic 4 | . . . . . . . . . . . . . . 4 . Robot Analysis 6 | . 1 1 . . . . . . . . . . . 4 . Prototype ID Bank 4 | . . . . . . . . . . . . . . 4 . Open Door 2 | . . . . . . 1 . 1 . . . . . . . Branch Access Points 2 | . . . . . 1 . . . . . 1 . . . . Alert Level 1 | . . . . . 1 . . . . . . . . . . Locate Traps 1 | . . . . . . . . . . . 1 . . . . Zone Layout 2 | . . . . . . . . . . 1 1 . . . . Fabricator Hacks 1 | . . . . . 1 . . . . . . . . . . Build 1 | . . . . . 1 . . . . . . . . . . Repair Station Hacks . | . . . . . . . . . . . . . . . . Recycling Unit Hacks . | . . . . . . . . . . . . . . . . Scanalyzer . | . . . . . . . . . . . . . . . . Garrison Access Hacks . | . . . . . . . . . . . . . . . . Unauthorized Hacks 6 | . . . . . 2 . . . . 2 2 . . . . Terminals 6 | . . . . . 2 . . . . 2 2 . . . . Botnet 6 | . . . . . 2 . . . . 2 2 . . . . Fabricators . | . . . . . . . . . . . . . . . . Repair Stations . | . . . . . . . . . . . . . . . . Recycling Units . | . . . . . . . . . . . . . . . . Scanalyzers . | . . . . . . . . . . . . . . . . Garrison Access . | . . . . . . . . . . . . . . . . Data Cores Recovered . | . . . . . . . . . . . . . . . . Used . | . . . . . . . . . . . . . . . . Hacking Detections 14 | . 1 . . . 4 2 . 2 . 2 3 . . . . Full Trace Events . | . . . . . . . . . . . . . . . . Feedback Events . | . . . . . . . . . . . . . . . . Feedback Blocked . | . . . . . . . . . . . . . . . . Robot Schematics Acquired . | . . . . . . . . . . . . . . . . Robots Built . | . . . . . . . . . . . . . . . . Matter . | . . . . . . . . . . . . . . . . Time . | . . . . . . . . . . . . . . . . Total Robot Build Rating . | . . . . . . . . . . . . . . . . Part Schematics Acquired 4 | . . . . . . . . . . . . . . 4 . Parts Built 2 | . . . . . 2 . . . . . . . . . . Matter 234 | . . . . . 234 . . . . . . . . . . Time 58 | . . . . . 58 . . . . . . . . . . Total Part Build Rating 14 | . . . . . 14 . . . . . . . . . . Parts Repaired . | . . . . . . . . . . . . . . . . Time . | . . . . . . . . . . . . . . . . Parts Recycled . | . . . . . . . . . . . . . . . . Recycled Matter . | . . . . . . . . . . . . . . . . Retrieved Matter . | . . . . . . . . . . . . . . . . Retrieved Components . | . . . . . . . . . . . . . . . . Parts Scanalyzed . | . . . . . . . . . . . . . . . . Part Schematics Acquired . | . . . . . . . . . . . . . . . . Parts Damaged . | . . . . . . . . . . . . . . . . Bothacking | -11 -10 -9 -9 -8 -7 -6 -6 -6 -6 -6 -5 -5 -5 -5 -4 ------------ Run | Scr Mat Mat Min Mat Fac Fac Ext Cet Arc Hub Fac Upp Upp Zhi Pro Used RIF Installer . | . . . . . . . . . . . . . . . . Robots Hacked . | . . . . . . . . . . . . . . . . Non-combat . | . . . . . . . . . . . . . . . . Combat . | . . . . . . . . . . . . . . . . Robot Hacks Applied . | . . . . . . . . . . . . . . . . Relay Couplers Released . | . . . . . . . . . . . . . . . . Robots Rewired 9 | . . . . . . . 8 . . . 1 . . . . Allies Hacked . | . . . . . . . . . . . . . . . . Hacks Repelled . | . . . . . . . . . . . . . . . . Allies | -11 -10 -9 -9 -8 -7 -6 -6 -6 -6 -6 -5 -5 -5 -5 -4 -------- Run | Scr Mat Mat Min Mat Fac Fac Ext Cet Arc Hub Fac Upp Upp Zhi Pro Total Allies 17 | . . . 2 . 3 . 10 . . . 1 1 . . . Largest Group 5 | . . . 2 2 3 . 5 5 . . 1 1 . . . Highest-Rated Group 269 | . . . 53 53 93 . 269 259 . . 29 135 . . . Highest-Rated Ally 156 | . . . 31 31 31 . 156 150 . . 29 135 . . . Total Orders 4 | . . . . . . . 4 . . . . . . . . GUARD 4 | . . . . . . . 4 . . . . . . . . Ally Attacks 120 | . . . 10 5 24 . 64 6 . . 11 . . . . Total Damage 3272 | . . . 252 96 373 . 2233 165 . . 153 . . . . Kills 19 | . . . 1 . 4 . 13 1 . . . . . . . Allies Corrupted . | . . . . . . . . . . . . . . . . Allies Melted . | . . . . . . . . . . . . . . . . Intel | -11 -10 -9 -9 -8 -7 -6 -6 -6 -6 -6 -5 -5 -5 -5 -4 ------- Run | Scr Mat Mat Min Mat Fac Fac Ext Cet Arc Hub Fac Upp Upp Zhi Pro Robot Analysis Total 6 | . 1 1 . . . . . . . . . . . 4 . Derelict Logs Recovered 2 | . . . . . . . . . . . . 2 . . . Drone Launches . | . . . . . . . . . . . . . . . . Drone Recoveries . | . . . . . . . . . . . . . . . . Exploration | -11 -10 -9 -9 -8 -7 -6 -6 -6 -6 -6 -5 -5 -5 -5 -4 ------------- Run | Scr Mat Mat Min Mat Fac Fac Ext Cet Arc Hub Fac Upp Upp Zhi Pro Turns Passed 8720 | . 251 773 412 463 1839 1025 750 596 300 527 1158 381 97 134 14 Spaces Moved 4348 | 1 168 252 195 170 929 460 324 272 127 238 501 238 194 251 28 Core 532 | . . . . . . . . . . . . 59 194 251 28 Treads 1460 | . . 61 . . 58 460 324 259 123 53 122 . . . . Legs 1941 | 1 168 191 195 170 456 . . 13 4 185 379 179 . . . Wheels 415 | . . . . . 415 . . . . . . . . . . Hover . | . . . . . . . . . . . . . . . . Flight . | . . . . . . . . . . . . . . . . Fastest Speed 50 | 120 120 120 180 180 120 183 180 180 180 150 150 50 50 50 50 Average Speed 155 | 120 120 203 183 192 157 183 181 180 181 159 159 140 50 50 50 Slowest Speed 250 | 120 120 220 210 210 250 183 183 210 240 180 210 180 50 50 50 Overloaded Moves . | . . . . . . . . . . . . . . . . Propulsion Burnouts . | . . . . . . . . . . . . . . . . Robots Hopped . | . . . . . . . . . . . . . . . . Cave-ins Triggered . | . . . . . . . . . . . . . . . . Exploration Rate (%) 38 | 2 29 30 55 27 27 13 62 82 94 26 18 44 39 62 7 Regions Visited 15 Branch Regions 9 Pre-discovered Areas 2 | . . . . . . . . . . . . . . 2 . Known Exits Taken 1 | . . . . . . . . . . . 1 . . . . Unknown Exits Taken 14 | 1 1 1 1 1 1 1 1 1 1 1 . 1 1 1 . Scrap Searched 3 | . . . . . . . . . . . . 2 . . 1 Spaces Dug 3 | . . . . . . . . . . . 3 . . . . Terrain Destroyed 297 | . 3 13 . 3 41 4 22 105 . 3 100 3 . . . Melee 3 | . . . . . . . . . . . 3 . . . . Projectile 35 | . . . . 3 3 4 7 5 . 3 7 3 . . . AOE 259 | . 3 13 . . 38 . 15 100 . . 90 . . . . Terrain Rammed . | . . . . . . . . . . . . . . . . Walls Destroyed . | . . . . . . . . . . . . . . . . Machines Disabled . | . . . . . . . . . . . . . . . . Actions | -11 -10 -9 -9 -8 -7 -6 -6 -6 -6 -6 -5 -5 -5 -5 -4 --------- Run | Scr Mat Mat Min Mat Fac Fac Ext Cet Arc Hub Fac Upp Upp Zhi Pro Total 5426 | . 194 389 224 225 1145 581 440 325 156 308 703 258 193 257 28 Wait 284 | . 8 46 5 1 75 68 8 10 6 13 44 . . . . Move 4333 | . 167 251 194 169 928 459 323 271 126 237 500 237 193 250 28 Hop . | . . . . . . . . . . . . . . . . Pick Up 57 | . 1 10 3 4 15 5 2 1 . 5 10 . . 1 . Fast Attach 60 | . 7 8 1 1 10 4 2 5 3 4 9 2 . 4 . Attach 69 | . . 2 4 7 16 2 3 5 2 6 20 2 . . . Detach 2 | . . . . . . . . 2 . . . . . . . Swap 40 | . . 4 2 3 10 1 4 3 1 5 7 . . . . Drop 41 | . 1 7 . . 6 8 4 . . 1 10 2 . 2 . Fire 416 | . 10 61 15 39 84 29 21 28 18 33 72 6 . . . Melee 13 | . . . . . 1 . . . . . 3 9 . . . Ram . | . . . . . . . . . . . . . . . . Kick 5 | . . . . 1 . . . . . 4 . . . . . Crush 8 | . . . . . . 1 . . . . 7 . . . . Escape Stasis 14 | . . . . . . 4 . . . . 10 . . . . Rewire 84 | . . . . . . . 73 . . . 11 . . . . Trap . | . . . . . . . . . . . . . . . . Miscellaneous . | . . . . . . . . . . . . . . . . Route ------- -11/Scrapyard -10/Materials -9/Materials -9/Mines -8/Materials -7/Factory (discovered 3 exits: *Fac / Low x2) -6/Factory (discovered 2 exits: *Fac / *Ext) -6/Extension (discovered 3 exits: *Fac x2 / *Cet) -6/Cetus -6/Archives (discovered 3 exits: *Fac / *Hub x2) -6/Hub_04(d) -5/Factory (discovered 2 exits: *Upp x2) -5/Upper Caves -5/Upper Caves -5/Zhirov -4/Proximity Caves History --------- Turn | Location | Event 1 | -11/Scrapyard | Discovered new exit (range 0) 1 | -11/Scrapyard | Entered Materials 242 | -10/Materials | Discovered new exit (range 8) 252 | -10/Materials | Entered another Materials area 252 | -9/Materials | Evolved 2 slots: Utility x2 319 | -9/Materials | Build established: Mutant 641 | -9/Materials | Build established: Hauler-Mutant 977 | -9/Materials | Core integrity fell below 50% 998 | -9/Materials | Discovered new exit (range 12) 1025 | -9/Materials | Entered Mines 1028 | -9/Mines | Met a Derelict bent on vengeance 1063 | -9/Mines | Joined a pair of Derelicts in attacking an 0b10 outpost 1113 | -9/Mines | Lost 3 parts (1p2w) 1396 | -9/Mines | Discovered new exit (range 12) 1437 | -9/Mines | Entered Materials 1437 | -8/Materials | Accompanied by 2 allies 1437 | -8/Materials | Evolved 2 slots: Utility x2 1442 | -8/Materials | Led the pair of lost Derelicts to an unsafe place 1690 | -8/Materials | Lost 3 parts (2u1w) 1893 | -8/Materials | Discovered new exit (range 4) 1900 | -8/Materials | Entered Factory 1900 | -7/Factory | Evolved 2 slots: Propulsion x1, Utility x1 2245 | -7/Factory | Garrison activated, responded to threat 2479 | -7/Factory | Fabricated Matter Neutralizer (x2) 2603 | -7/Factory | Local fabrication network quarantined 2700 | -7/Factory | First assault squad dispatched 2896 | -7/Factory | Garrison activated, responded to threat 3011 | -7/Factory | Lost 9 parts (1p4n1u3w) 3100 | -7/Factory | Allied Derelicts emerged from ambush trap array 3382 | -7/Factory | Identified exit to Lower Caves 3471 | -7/Factory | Lost 3 parts (2n1w) 3625 | -7/Factory | Discovered new exit (range 5) 3739 | -7/Factory | Entered another Factory area 3739 | -6/Factory | Evolved 2 slots: Utility x1, Weapon x1 4078 | -6/Factory | Garrison activated, responded to threat 4124 | -6/Factory | Build established: Scavenger-Gunner 4438 | -6/Factory | Discovered new exit (range 9) 4587 | -6/Factory | Garrison activated, responded to threat 4687 | -6/Factory | Build established: Hauler-Gunner 4756 | -6/Factory | Discovered new exit (range 6) 4764 | -6/Factory | Entered Extension 4822 | -6/Extension | Energy Cycler disabled 4822 | -6/Extension | Rescued a captive Derelict 4822 | -6/Extension | Rescued a captive Derelict 4823 | -6/Extension | Rescued a captive Derelict 4824 | -6/Extension | Rescued a captive Derelict 4824 | -6/Extension | Rescued a captive Derelict 4825 | -6/Extension | Rescued a captive Derelict 4826 | -6/Extension | Rescued a captive Derelict 4847 | -6/Extension | Rescued A7 5281 | -6/Extension | Spotted B-75 Beast 5294 | -6/Extension | Discovered new exit (range 20) 5294 | -6/Extension | Spotted B-75 Beast 5309 | -6/Extension | Allies destroyed B-75 Beast 5315 | -6/Extension | Allies destroyed B-75 Beast 5470 | -6/Extension | Discovered new exit (range 22) 5472 | -6/Extension | Discovered new exit (range 21) 5514 | -6/Extension | Entered Cetus 5514 | -6/Cetus | Accompanied by 5 allies (A7) 5519 | -6/Cetus | Acquired a Cetus Manufacturing Module code from A7 5533 | -6/Cetus | Spotted Cetus Guard 5533 | -6/Cetus | Spotted Cetus Guard 5534 | -6/Cetus | Spotted Cetus Guard 5541 | -6/Cetus | Spotted Cetus Guard 5543 | -6/Cetus | Allies destroyed A7 5547 | -6/Cetus | Destroyed Cetus Guard 5566 | -6/Cetus | Destroyed Cetus Guard 5569 | -6/Cetus | Destroyed Cetus Guard 5592 | -6/Cetus | Destroyed Cetus Guard 5619 | -6/Cetus | Lost 9 parts (1p2n3u3w) 5803 | -6/Cetus | Core integrity fell below 50% 5805 | -6/Cetus | Cetus Manufacturing Module disabled 5853 | -6/Cetus | Discovered new exit (range 21) 5891 | -6/Cetus | Spotted Cetus Guard 5932 | -6/Cetus | Spotted Cetus Guard 5932 | -6/Cetus | Spotted Cetus Guard 5932 | -6/Cetus | Spotted Cetus Guard 6110 | -6/Cetus | Entered Archives 6223 | -6/Archives | Discovered new exit (range 22) 6234 | -6/Archives | Discovered new exit (range 19) 6236 | -6/Archives | Lost 6 parts (1n2u3w) 6258 | -6/Archives | Unable to access archive contents 6282 | -6/Archives | Unable to access archive contents 6298 | -6/Archives | Discovered new exit (range 20) 6318 | -6/Archives | Unable to access archive contents 6410 | -6/Archives | Entered Hub_04(d) 6446 | -6/Hub_04(d) | Spotted B-75 Beast 6469 | -6/Hub_04(d) | Garrison activated, responded to threat 6733 | -6/Hub_04(d) | Core integrity fell below 20% 6744 | -6/Hub_04(d) | Lost 5 parts (1p2u2w) 6905 | -6/Hub_04(d) | Discovered new exit (range 7) 6937 | -6/Hub_04(d) | Entered Factory 6937 | -5/Factory | Evolved 2 slots: Power x1, Utility x1 7053 | -5/Factory | Build established: Scavenger-Gunner 7098 | -5/Factory | Identified exit to Upper Caves 7741 | -5/Factory | Lost 8 parts (2p3n3w) 7742 | -5/Factory | Destroyed 9 combat bots 7880 | -5/Factory | System corruption reached 10% 7894 | -5/Factory | Lost 8 parts (1p1n1u5w) 8038 | -5/Factory | Spotted B-75 Beast 8095 | -5/Factory | Entered Upper Caves 8110 | -5/Upper Caves | Lost 6 parts (1n3u2w) 8176 | -5/Upper Caves | Learned 8 Factory zone layouts 8295 | -5/Upper Caves | Learned Factory emergency access door positions 8374 | -5/Upper Caves | Build established: Scavenger-Mutant 8421 | -5/Upper Caves | Core integrity fell below 50% 8429 | -5/Upper Caves | System corruption reached 30% 8454 | -5/Upper Caves | Discovered new exit (range 14) 8459 | -5/Upper Caves | Lost 11 parts (2p3n4u2w) 8476 | -5/Upper Caves | Entered another Upper Caves area 8556 | -5/Upper Caves | Attacked by a faux Warlord 8557 | -5/Upper Caves | Core integrity fell below 20% 8570 | -5/Upper Caves | Discovered new exit (range 6) 8573 | -5/Upper Caves | Entered Zhirov 8573 | -5/Zhirov | Discovered new exit (range 3) 8588 | -5/Zhirov | Met Zhirov 8605 | -5/Zhirov | Zhirov requested help retrieving the SGEMP Prototype 8632 | -5/Zhirov | Learned location of Quarantine (-2) 8632 | -5/Zhirov | Learned location of Testing (-3) 8654 | -5/Zhirov | Found Alien Artifact 8654 | -5/Zhirov | Identified Integrated Dissipator 8654 | -5/Zhirov | Installed Integrated Dissipator, increased core heat dissipation (+20) 8707 | -5/Zhirov | Entered Proximity Caves 8710 | -4/Proximity Caves | Attracted the attention of an 0b10 checkpoint 8721 | -4/Proximity Caves | Destroyed by S-27 Virus with Autogun Last Messages --------------- that I don't know anyone capable of doing this besides myself. And it's not me... 08671_ Acquired Adv. Hacking Suite. 08672_ System corrupted: Energy discharge (-26). 08676_ Dropped Mic. Nuclear Core. 08677_ Acquired Hvy. Antimatter Reactor. 08681_ Acquired Prototype Protection. 08681_ Identified Exp. Utility Shielding. 08683_ Acquired Prototype Device. 08683_ Identified Adv. Power Amplifier. 08684_ Dropped Adv. Power Amplifier. 08687_ System corrupted: Energy discharge (-20). 08700_ Zhirov uses his terminal. LOCATION=UNKNOWN GOAL=ESCAPE 08710_ Y-64 Sentinel: "INTERCEPTING UNREGISTERED DERELICT." 08721_ Searching scrap... 08721_ Found Imp. Medium Treads. 08721_ Found Imp. Weapon Cycler. 08721_ Found 22 Matter. Map ----- +----------------------------------------------------+ | ?????????????????????????????????????????????????? | | ????????????????????????##???????????????????????? | | ????????????? # ####### ###????????????????????? | | ???????????# ##??????##???????????? | | ???????????????# ##???? ##??????????? | | ?????????????????# ###### #??? ####???????? | | ????????????????????????## ### #???????? | | ???????????????????????### #???????? | | ???????????????????????# #???????? | | ???????????????????????## #### #???????? | | ????????????????????????# #???? #???????? | | ???????????????????????## #?????? #???????? | | ??????????????????????## ##??????? #???????? | | ?????????????????????## ##??????????????????? | | ????????????????????## ##?????????????????? | | ????????????????????# #?????????????????? | | ???????????????###### #### #????????????? | | ?????????????? #????????????? | | ?????????????? #????????????? | | ?????????????? " "" #######????????????? | | ??????????????? """""" ##????????????????? | | ????????????????? " " ##??????? ????? | | ?????????????? ##### ??? | | ?????????????? """" "" sss ??? | | ???????????????## """"" ??? | | ?????????????????# "@= ######### ??? | | ?????????????????# ! #???????????? ????? | | ?????????????# ###?????????????????? | | ?????????????####### ##???????????????????? | | ???????????????????# ## ##????????????????????? | | ???????????????????#??### ##?????????????????????? | | ????????????????????????###??????????????????????? | | ?????????????????????????????????????????????????? | | ?????????????????????????????????????????????????? | | ?????????????????????????????????????????????????? | | ?????????????????????????????????????????????????? | | ?????????????????????????????????????????????????? | | ?????????????????????????????????????????????????? | | ?????????????????????????????????????????????????? | | ?????????????????????????????????????????????????? | | ?????????????????????????????????????????????????? | | ?????????????????????????????????????????????????? | | ?????????????????????????????????????????????????? | | ?????????????????????????????????????????????????? | | ?????????????????????????????????????????????????? | | ?????????????????????????????????????????????????? | | ?????????????????????????????????????????????????? | | ?????????????????????????????????????????????????? | | ?????????????????????????????????????????????????? | | ?????????????????????????????????????????????????? | +----------------------------------------------------+ Best States ------------- Heat Dissipation 109 Energy Generation 29 Energy Capacity 1290 Matter Stores 300 Matter Capacity 450 Sight Range 22 Terrain Scan Density 10 Armor Coverage 450 Resistance: KI 30 Core Shielding 20 Utility Shielding 90 Evasion (%) 50 Targeting Accuracy 14 Armor Integrity Analysis 50 Recoil Reduction 3 Particle Charging 20 Offensive Hacking 14 Defensive Hacking 11 Item Schematics ----------------- Assault Drone Bay | -5/Zhirov | Free Exp. Heat Sink | -5/Zhirov | Free Exp. Optical Array | -5/Zhirov | Free Imp. Arc Thrower | -5/Zhirov | Free Robot Schematics ------------------ None Fabricated ------------ Matter Neutralizer | x2 | -7/Factory | Preloaded Alien Tech Used ----------------- Integrated Dissipator Achievements -------------- None Challenges ------------ None Game ------ Seed AngularLongswordMapper Manual? 0 Play Time 01:33:17 Cumulative 25.3 hours Start 2020.11.29 @ 12:37:35 End 2020.11.29 @ 19:17:17 Sessions 7 Manual Loads 0 Difficulty Rogue Special Mode Halloween2020/ForbiddenLore Game No. 39 Rogue 39 Adventurer 0 Explorer 0 Win Type - Total 0 Types 0/0/0/0/0/0/0/0/0 Lore% 37 Gallery% 38 Achievement% 37 Wizard Run 0 Options --------- ASCII 0 Keyboard 0 Movement Numpad Keybinds 0 Fullscreen 1 Font 18/SmallcapsGlow Map View 76x50 Tactical HUD 1 Map Filters NONE Filters NONE Steam 1 RUN: 78710da4-edfb-4fec-90d6-4b2ade1fc714